[Event "16th Deltalift Open 2019"]
[Site "Halmstad"]
[Date "2019.05.30"]
[Round "2.15"]
[White "Silfverstroem, Niklas"]
[Black "Ziegler, Ari"]
[Result "1/2-1/2"]
[ECO "A46"]
[WhiteElo "2019"]
[BlackElo "2300"]
[Annotator "ChessBase"]
[PlyCount "141"]
[EventDate "2019.05.30"]
[EventType "swiss"]
[EventCountry "SWE"]
[SourceTitle "playchess.com"]
[Source "ChessBase"]
[SourceQuality "1"]
[TimeControl "1800+12"]

1. d4 {[%emt 0:00:00]} Nf6 {[%emt 0:00:00]} 2. Nf3 {[%emt 0:00:01]} e6 {[%emt 0:00:00]} 3. g3 {[%emt 0:00:02]} d5 {[%emt 0:00:00]} 4. Bg2 {[%emt 0:00:01]} Bd6 {[%emt 0:00:04]} 5. O-O {[%emt 0:00:03]} O-O {[%emt 0:00:06]} 6. c4 {[%emt 0:00:30]} c6 {[%emt 0:00:02]} 7. Nc3 {[%emt 0:00:03]} Ne4 {[%emt 0:02:05]} 8. Nxe4 {[%emt 0:03:20]} dxe4 {[%emt 0:00:04]} 9. Ne5 {[%emt 0:00:02]} f5 {[%emt 0:00:24]} 10. f3 {[%emt 0:01:10]} Bxe5 {[%emt 0:02:53]} 11. dxe5 {[%emt 0:00:02]} Qb6+ {[%emt 0:00:03]} 12. Kh1 {[%emt 0:00:15]} exf3 {[%emt 0:02:03]} 13. exf3 {[%emt 0:00:07]} Qc5 {[%emt 0:01:46]} 14. Qe2 {[%emt 0:00:45]} a5 {[%emt 0:01:41]} 15. f4 {[%emt 0:02:27]} Na6 {[%emt 0:01:15]} 16. Be3 {[%emt 0:00:05]} Qe7 {[%emt 0:00:14]} 17. Rad1 {[%emt 0:00:16]} c5 {[%emt 0:07:46]} 18. Rd6 {[%emt 0:01:37]} Rb8 {[%emt 0:00:06]} 19. Rfd1 {[%emt 0:02:51]} h6 {[%emt 0:01:40]} 20. g4 {[%emt 0:01:37]} b6 {[%emt 0:01:28]} 21. gxf5 {[%emt 0:00:17]} Rxf5 {[%emt 0:00:50]} 22. Qg4 {[%emt 0:01:37]} Kh7 {[%emt 0:02:58]} 23. Be4 {[%emt 0:03:19]} Bb7 {[%emt 0:00:11]} 24. R1d5 {[%emt 0:00:22]} Rbf8 {[%emt 0:03:59]} 25. Rd7 {[%emt 0:03:45]} Qxd7 {[%emt 0:00:02]} 26. Rxd7 {[%emt 0:00:02]} Bxe4+ {[%emt 0:00:01]} 27. Kg1 {[%emt 0:00:01]} Rg8 {[%emt 0:00:06]} 28. Re7 {[%emt 0:00:21]} Nb4 {[%emt 0:00:12]} 29. Rxe6 {[%emt 0:01:04]} Nc2 {[%emt 0:00:24]} 30. Bf2 {[%emt 0:00:11]} g5 {[%emt 0:00:10]} 31. Bg3 {[%emt 0:08:27]} gxf4 {[%emt 0:00:03]} 32. Qh4 {[%emt 0:00:01]} h5 {[%emt 0:00:01]} 33. Qe7+ {[%emt 0:00:03]} Rg7 {[%emt 0:00:10]} 34. Qd6 {[%emt 0:00:03]} Nd4 {[%emt 0:01:43]} 35. Rh6+ {[%emt 0:00:09]} Kg8 {[%emt 0:00:00]} 36. Qd8+ {[%emt 0:01:00]} Rf8 {[%emt 0:00:20]} 37. Rh8+ {[%emt 0:00:08]} Kxh8 {[%emt 0:00:01]} 38. Qxf8+ {[%emt 0:00:01]} Kh7 {[%emt 0:00:01]} 39. Qe8 {[%emt 0:00:34]} Bg6 {[%emt 0:00:04]} 40. Qd8 {[%emt 0:00:26]} fxg3 {[%emt 0:00:03]} 41. hxg3 {[%emt 0:00:01]} Bf7 {[%emt 0:00:15]} 42. Kf2 {[%emt 0:00:29]} Bxc4 {[%emt 0:00:10]} 43. Qxb6 {[%emt 0:00:04]} Rf7+ {[%emt 0:00:06]} 44. Ke1 {[%emt 0:00:28]} Rf1+ {[%emt 0:00:29]} 45. Kd2 {[%emt 0:00:05]} Rf2+ {[%emt 0:00:15]} 46. Ke3 {[%emt 0:00:24]} Rf3+ {[%emt 0:01:33]} 47. Ke4 {[%emt 0:00:25]} Rxg3 {[%emt 0:00:29]} 48. Qxc5 {[%emt 0:00:15]} Rg4+ {[%emt 0:00:02]} 49. Ke3 {[%emt 0:00:06]} Nf5+ {[%emt 0:00:09]} 50. Kf2 {[%emt 0:00:13]} h4 {[%emt 0:00:13]} 51. Kf3 {[%emt 0:00:16]} Rg3+ {[%emt 0:00:36]} 52. Kf4 {[%emt 0:00:05]} Bd3 {[%emt 0:00:01]} 53. e6 {[%emt 0:00:16]} Rg7 {[%emt 0:00:11]} 54. Qf2 {[%emt 0:00:21]} h3 {[%emt 0:00:12]} 55. Qh2 {[%emt 0:00:06]} Nh6 {[%emt 0:00:12]} 56. Qxh3 {[%emt 0:00:07]} Bf5 {[%emt 0:00:02]} 57. Qa3 {[%emt 0:00:03]} Rg4+ {[%emt 0:00:15]} 58. Kf3 {[%emt 0:00:16]} Be4+ {[%emt 0:00:11]} 59. Kf2 {[%emt 0:00:09]} Rf4+ {[%emt 0:00:43]} 60. Ke1 {[%emt 0:00:06]} Bg6 {[%emt 0:00:09]} 61. Qxa5 {[%emt 0:00:07]} Re4+ {[%emt 0:00:04]} 62. Kd2 {[%emt 0:00:05]} Rxe6 {[%emt 0:00:02]} 63. b4 {[%emt 0:00:04]} Nf5 {[%emt 0:00:03]} 64. b5 {[%emt 0:00:09]} Nd6 {[%emt 0:00:33]} 65. Qc7+ {[%emt 0:00:09]} Kh6 {[%emt 0:00:04]} 66. b6 {[%emt 0:00:02]} Be4 {[%emt 0:00:19]} 67. a4 {[%emt 0:00:06]} Bd5 {[%emt 0:00:30]} 68. Qd8 {[%emt 0:01:02]} Nc4+ {[%emt 0:00:20]} 69. Kc3 {[%emt 0:00:13]} Nxb6 {[%emt 0:00:04]} 70. a5 {[%emt 0:00:10]} Rc6+ {[%emt 0:00:24]} 71. Kd2 {[%emt 0:00:23]} 1/2-1/2

[Event "16th Deltalift Open 2019"]
[Site "Halmstad"]
[Date "2019.05.30"]
[Round "2.16"]
[White "Lindgren, Fredrik"]
[Black "Ytterberg, Felix"]
[Result "1-0"]
[ECO "A46"]
[WhiteElo "2278"]
[BlackElo "2018"]
[Annotator "ChessBase"]
[PlyCount "77"]
[EventDate "2019.05.30"]
[EventType "swiss"]
[EventCountry "SWE"]
[SourceTitle "playchess.com"]
[Source "ChessBase"]
[SourceQuality "1"]
[TimeControl "1800+12"]

1. d4 {[%emt 0:00:00]} Nf6 {[%emt 0:00:00]} 2. Nf3 {[%emt 0:00:00]} d5 {[%emt 0:00:00]} 3. g3 {[%emt 0:00:00]} g6 {[%emt 0:00:00]} 4. Bg2 {[%emt 0:00:00]} Bg7 {[%emt 0:00:00]} 5. O-O {[%emt 0:00:01]} O-O {[%emt 0:00:03]} 6. Bf4 {[%emt 0:00:06]} Bf5 {[%emt 0:00:21]} 7. c4 {[%emt 0:00:16]} c6 {[%emt 0:00:03]} 8. Nbd2 {[%emt 0:00:07]} Ne4 {[%emt 0:00:13]} 9. Rc1 {[%emt 0:00:17]} Nxd2 {[%emt 0:00:24]} 10. Qxd2 {[%emt 0:00:08]} Be4 {[%emt 0:00:02]} 11. Rfd1 {[%emt 0:00:13]} Nd7 {[%emt 0:00:21]} 12. Bh6 {[%emt 0:01:33]} Nf6 {[%emt 0:00:17]} 13. Bxg7 {[%emt 0:00:46]} Kxg7 {[%emt 0:00:03]} 14. Qb4 {[%emt 0:00:05]} Qb6 {[%emt 0:01:15]} 15. Qxb6 {[%emt 0:00:17]} axb6 {[%emt 0:00:03]} 16. a3 {[%emt 0:00:03]} e6 {[%emt 0:00:24]} 17. Ne5 {[%emt 0:00:19]} Rfd8 {[%emt 0:00:58]} 18. f3 {[%emt 0:00:10]} Bf5 {[%emt 0:00:41]} 19. g4 {[%emt 0:00:01]} Bxg4 {[%emt 0:00:02]} 20. fxg4 {[%emt 0:00:14]} dxc4 {[%emt 0:00:01]} 21. Rxc4 {[%emt 0:01:00]} b5 {[%emt 0:00:03]} 22. Rcc1 {[%emt 0:00:23]} Ra4 {[%emt 0:00:11]} 23. e3 {[%emt 0:00:08]} Nd5 {[%emt 0:00:36]} 24. Bxd5 {[%emt 0:00:12]} exd5 {[%emt 0:00:02]} 25. Rf1 {[%emt 0:00:54]} f6 {[%emt 0:00:04]} 26. Nd3 {[%emt 0:00:06]} Re8 {[%emt 0:00:06]} 27. Rf3 {[%emt 0:00:14]} Re4 {[%emt 0:00:44]} 28. h3 {[%emt 0:00:05]} Re7 {[%emt 0:00:03]} 29. Rcf1 {[%emt 0:00:34]} Rf7 {[%emt 0:00:02]} 30. Ne5 {[%emt 0:00:29]} Rf8 {[%emt 0:00:11]} 31. Nd7 {[%emt 0:00:02]} Re8 {[%emt 0:00:09]} 32. Nxf6 {[%emt 0:00:03]} Re7 {[%emt 0:00:04]} 33. g5 {[%emt 0:00:18]} b4 {[%emt 0:00:01]} 34. axb4 {[%emt 0:00:11]} Rxb4 {[%emt 0:00:06]} 35. R1f2 {[%emt 0:00:09]} Rb3 {[%emt 0:00:10]} 36. Ng4 {[%emt 0:00:04]} b6 {[%emt 0:01:02]} 37. Nh6 {[%emt 0:01:25]} Re8 {[%emt 0:00:43]} 38. Rf7+ {[%emt 0:00:04]} Kh8 {[%emt 0:00:03]} 39. Rf8+ {[%emt 0:00:03]} 1-0

[Event "16th Deltalift Open 2019"]
[Site "Halmstad"]
[Date "2019.05.30"]
[Round "2.17"]
[White "Ivarsson, Sebastian"]
[Black "Silseth, Simon"]
[Result "0-1"]
[ECO "A80"]
[WhiteElo "2013"]
[BlackElo "2268"]
[Annotator "ChessBase"]
[PlyCount "48"]
[EventDate "2019.05.30"]
[EventType "swiss"]
[EventCountry "SWE"]
[SourceTitle "playchess.com"]
[Source "ChessBase"]
[SourceQuality "1"]
[TimeControl "1800+12"]

1. d4 {[%emt 0:00:00]} f5 {[%emt 0:00:03]} 2. Nf3 {[%emt 0:00:27]} Nf6 {[%emt 0:00:05]} 3. g3 {[%emt 0:00:22]} d6 {[%emt 0:00:20]} 4. Bg2 {[%emt 0:00:07]} g6 {[%emt 0:00:06]} 5. O-O {[%emt 0:00:09]} Bg7 {[%emt 0:00:03]} 6. c4 {[%emt 0:00:19]} O-O {[%emt 0:00:05]} 7. b3 {[%emt 0:02:02]} c6 {[%emt 0:00:03]} 8. Bb2 {[%emt 0:00:06]} d5 {[%emt 0:02:03]} 9. Ne5 {[%emt 0:03:13]} Be6 {[%emt 0:00:08]} 10. Nc3 {[%emt 0:01:15]} Nbd7 {[%emt 0:00:38]} 11. Rc1 {[%emt 0:02:10]} dxc4 {[%emt 0:02:45]} 12. Nxc4 {[%emt 0:03:29]} Nb6 {[%emt 0:00:29]} 13. Nxb6 {[%emt 0:01:07]} axb6 {[%emt 0:00:08]} 14. f3 {[%emt 0:01:27]} b5 {[%emt 0:03:03]} 15. a4 {[%emt 0:07:02]} Nd5 {[%emt 0:03:42]} 16. Nxd5 {[%emt 0:01:45]} Qxd5 {[%emt 0:00:53]} 17. Rc5 {[%emt 0:05:26]} Qxb3 {[%emt 0:01:00]} 18. Qxb3 {[%emt 0:00:02]} Bxb3 {[%emt 0:00:03]} 19. axb5 {[%emt 0:00:04]} Ra2 {[%emt 0:01:52]} 20. Rb1 {[%emt 0:00:06]} Rxb2 {[%emt 0:00:26]} 21. Rxb2 {[%emt 0:00:06]} Bxd4+ {[%emt 0:00:02]} 22. Kf1 {[%emt 0:00:42]} Bxb2 {[%emt 0:00:03]} 23. bxc6 {[%emt 0:00:08]} bxc6 {[%emt 0:00:24]} 24. Rxc6 {[%emt 0:00:01]} Rd8 {[%emt 0:01:43]} 0-1

[Event "16th Deltalift Open 2019"]
[Site "Halmstad"]
[Date "2019.05.30"]
[Round "2.18"]
[White "Nyander, Joakim"]
[Black "Svensson, Leif"]
[Result "0-1"]
[ECO "A11"]
[WhiteElo "2235"]
[BlackElo "2016"]
[Annotator "ChessBase"]
[PlyCount "114"]
[EventDate "2019.05.30"]
[EventType "swiss"]
[EventCountry "SWE"]
[SourceTitle "playchess.com"]
[Source "ChessBase"]
[SourceQuality "1"]
[TimeControl "1800+12"]

1. c4 {[%emt 0:00:00]} c6 {[%emt 0:00:00]} 2. g3 {[%emt 0:00:21]} e6 {[%emt 0:00:27]} 3. Bg2 {[%emt 0:00:19]} d5 {[%emt 0:00:06]} 4. Nf3 {[%emt 0:00:35]} Nf6 5. cxd5 {[%emt 0:01:36]} exd5 {[%emt 0:00:15]} 6. d3 {[%emt 0:00:22]} Be7 {[%emt 0:03:01]} 7. O-O {[%emt 0:00:27]} O-O {[%emt 0:00:05]} 8. Nc3 {[%emt 0:00:08]} Re8 {[%emt 0:00:23]} 9. e4 {[%emt 0:02:34]} dxe4 {[%emt 0:00:12]} 10. dxe4 {[%emt 0:00:09]} Qxd1 {[%emt 0:00:58]} 11. Rxd1 {[%emt 0:00:04]} Bg4 {[%emt 0:02:49]} 12. Bf4 {[%emt 0:02:44]} Bb4 {[%emt 0:00:52]} 13. h3 {[%emt 0:01:35]} Bh5 {[%emt 0:02:52]} 14. g4 {[%emt 0:06:33]} Bg6 {[%emt 0:00:06]} 15. Ne5 {[%emt 0:04:10]} Bxc3 {[%emt 0:03:01]} 16. Nxg6 {[%emt 0:00:58]} Bxb2 {[%emt 0:00:44]} 17. Rab1 {[%emt 0:00:42]} Ba3 {[%emt 0:01:56]} 18. Ne5 {[%emt 0:01:31]} b6 {[%emt 0:05:09]} 19. g5 {[%emt 0:00:51]} Nh5 {[%emt 0:00:15]} 20. Bh2 {[%emt 0:00:04]} f6 {[%emt 0:00:54]} 21. Nc4 {[%emt 0:02:46]} Bc5 {[%emt 0:01:34]} 22. Bf3 {[%emt 0:01:55]} g6 {[%emt 0:00:54]} 23. Bxh5 {[%emt 0:00:30]} gxh5 {[%emt 0:00:01]} 24. gxf6 {[%emt 0:00:02]} Kf7 {[%emt 0:00:36]} 25. e5 {[%emt 0:00:32]} Ke6 {[%emt 0:02:40]} 26. Rb3 {[%emt 0:01:02]} Na6 {[%emt 0:01:31]} 27. Kf1 {[%emt 0:01:11]} Nc7 {[%emt 0:00:15]} 28. Rf3 {[%emt 0:00:36]} Nd5 {[%emt 0:00:12]} 29. Nb2 {[%emt 0:00:32]} Rad8 {[%emt 0:01:01]} 30. Nc4 {[%emt 0:00:31]} b5 {[%emt 0:00:23]} 31. Na5 {[%emt 0:00:02]} Ne3+ {[%emt 0:00:14]} 32. fxe3 {[%emt 0:00:11]} Rxd1+ {[%emt 0:00:02]} 33. Kg2 {[%emt 0:00:28]} Ra1 {[%emt 0:00:03]} 34. Rf2 {[%emt 0:00:20]} Bxe3 {[%emt 0:00:08]} 35. Re2 {[%emt 0:00:01]} Rg8+ {[%emt 0:00:13]} 36. Kf3 {[%emt 0:00:01]} Bb6 {[%emt 0:00:05]} 37. Nxc6 {[%emt 0:00:01]} Rc1 {[%emt 0:01:55]} 38. Nb4 {[%emt 0:00:06]} Rc3+ {[%emt 0:00:06]} 39. Kf4 {[%emt 0:00:12]} Rc4+ {[%emt 0:00:13]} 40. Re4 {[%emt 0:00:01]} Rxe4+ {[%emt 0:00:08]} 41. Kxe4 {[%emt 0:00:01]} Rc8 {[%emt 0:00:06]} 42. Nd3 {[%emt 0:00:13]} Rc4+ {[%emt 0:00:07]} 43. Kf3 {[%emt 0:00:01]} Rc3 {[%emt 0:00:06]} 44. Ke4 {[%emt 0:00:01]} Rc4+ {[%emt 0:00:11]} 45. Kf3 {[%emt 0:00:01]} Rc2 {[%emt 0:00:01]} 46. Nf4+ {[%emt 0:00:22]} Kf7 {[%emt 0:00:01]} 47. Bg3 {[%emt 0:00:06]} Rxa2 {[%emt 0:00:12]} 48. Ke4 {[%emt 0:00:05]} Bc7 {[%emt 0:00:11]} 49. Kf5 {[%emt 0:00:31]} Bxe5 {[%emt 0:00:24]} 50. Kxe5 {[%emt 0:00:01]} b4 {[%emt 0:00:05]} 51. Kf5 {[%emt 0:00:15]} b3 {[%emt 0:00:06]} 52. Ne6 {[%emt 0:00:07]} Ra5+ {[%emt 0:00:06]} 53. Be5 {[%emt 0:00:02]} b2 {[%emt 0:00:13]} 54. Ng5+ {[%emt 0:00:25]} Ke8 {[%emt 0:00:23]} 55. f7+ {[%emt 0:00:47]} Ke7 {[%emt 0:00:13]} 56. Ne6 {[%emt 0:00:15]} b1=Q+ {[%emt 0:00:05]} 57. Kf4 {[%emt 0:00:02]} Kxe6 {[%emt 0:00:14]} 0-1

[Event "16th Deltalift Open 2019"]
[Site "Halmstad"]
[Date "2019.05.30"]
[Round "2.19"]
[White "Stray, Gunnar"]
[Black "Johnson, Daniel"]
[Result "0-1"]
[ECO "D05"]
[WhiteElo "2005"]
[BlackElo "2233"]
[Annotator "ChessBase"]
[PlyCount "60"]
[EventDate "2019.05.30"]
[EventType "swiss"]
[EventCountry "SWE"]
[SourceTitle "playchess.com"]
[Source "ChessBase"]
[SourceQuality "1"]
[TimeControl "1800+12"]

1. d4 {[%emt 0:00:00]} d5 {[%emt 0:01:23]} 2. Nf3 {[%emt 0:00:00]} Nf6 {[%emt 0:00:02]} 3. e3 {[%emt 0:00:00]} e6 {[%emt 0:00:14]} 4. Bd3 {[%emt 0:00:01]} c5 {[%emt 0:00:42]} 5. b3 {[%emt 0:00:03]} Nc6 {[%emt 0:00:22]} 6. O-O {[%emt 0:00:02]} Bd6 {[%emt 0:00:46]} 7. Bb2 {[%emt 0:00:02]} O-O {[%emt 0:01:05]} 8. Nbd2 {[%emt 0:00:03]} b6 {[%emt 0:08:41]} 9. a3 {[%emt 0:00:08]} Bb7 {[%emt 0:00:07]} 10. Ne5 {[%emt 0:00:04]} Ne7 {[%emt 0:02:27]} 11. f4 {[%emt 0:00:46]} Ne4 {[%emt 0:02:33]} 12. Nxe4 {[%emt 0:02:00]} dxe4 {[%emt 0:00:02]} 13. Be2 {[%emt 0:01:40]} Nf5 {[%emt 0:02:49]} 14. Qc1 {[%emt 0:01:10]} Rc8 {[%emt 0:01:42]} 15. Nc4 {[%emt 0:02:58]} Be7 {[%emt 0:00:41]} 16. Rd1 {[%emt 0:01:30]} Qc7 {[%emt 0:00:15]} 17. g4 {[%emt 0:02:05]} Nh4 {[%emt 0:00:11]} 18. dxc5 {[%emt 0:00:20]} Bxc5 {[%emt 0:00:54]} 19. Be5 {[%emt 0:00:27]} Qc6 {[%emt 0:00:45]} 20. b4 {[%emt 0:01:36]} Be7 {[%emt 0:01:29]} 21. Qb2 {[%emt 0:00:35]} f6 {[%emt 0:00:48]} 22. Bd6 {[%emt 0:00:18]} Bxd6 {[%emt 0:01:06]} 23. Rxd6 {[%emt 0:00:06]} Qe8 {[%emt 0:00:31]} 24. Rad1 {[%emt 0:00:40]} Qg6 {[%emt 0:00:07]} 25. Kf2 {[%emt 0:01:24]} Kh8 {[%emt 0:01:25]} 26. b5 {[%emt 0:00:48]} Rxc4 {[%emt 0:01:00]} 27. Bxc4 {[%emt 0:04:39]} Qxg4 {[%emt 0:00:03]} 28. R1d2 {[%emt 0:03:11]} Qg2+ {[%emt 0:01:03]} 29. Ke1 {[%emt 0:00:04]} Nf3+ {[%emt 0:00:02]} 30. Kd1 {[%emt 0:00:38]} Qg1+ {[%emt 0:00:02]} 0-1

[Event "16th Deltalift Open 2019"]
[Site "Halmstad"]
[Date "2019.05.30"]
[Round "2.20"]
[White "Crevatin, Leo"]
[Black "Cedervall, Magnus"]
[Result "1-0"]
[ECO "A06"]
[WhiteElo "2210"]
[BlackElo "2006"]
[Annotator "ChessBase"]
[PlyCount "71"]
[EventDate "2019.05.30"]
[EventType "swiss"]
[EventCountry "SWE"]
[SourceTitle "playchess.com"]
[Source "ChessBase"]
[SourceQuality "1"]
[TimeControl "1800+12"]

1. Nf3 {[%emt 0:00:00]} d5 {[%emt 0:00:08]} 2. e3 {[%emt 0:00:00]} Nf6 {[%emt 0:00:12]} 3. c4 {[%emt 0:00:00]} e6 {[%emt 0:00:05]} 4. b3 {[%emt 0:00:00]} b6 {[%emt 0:00:42]} 5. Bb2 {[%emt 0:00:01]} Be7 {[%emt 0:00:11]} 6. Be2 {[%emt 0:00:02]} Bb7 {[%emt 0:00:16]} 7. O-O {[%emt 0:00:03]} O-O {[%emt 0:00:04]} 8. Nc3 {[%emt 0:00:20]} c5 {[%emt 0:00:26]} 9. cxd5 {[%emt 0:00:38]} exd5 {[%emt 0:00:35]} 10. d4 {[%emt 0:00:04]} Nc6 {[%emt 0:01:07]} 11. Rc1 {[%emt 0:00:22]} Rc8 {[%emt 0:02:51]} 12. dxc5 {[%emt 0:01:16]} bxc5 {[%emt 0:00:19]} 13. Na4 {[%emt 0:00:02]} Nb4 {[%emt 0:06:28]} 14. a3 {[%emt 0:00:17]} Na6 {[%emt 0:00:49]} 15. Bd3 {[%emt 0:01:13]} Nd7 {[%emt 0:03:21]} 16. Qe2 {[%emt 0:00:27]} Nab8 {[%emt 0:01:37]} 17. Rfd1 {[%emt 0:00:58]} Nb6 {[%emt 0:00:38]} 18. Bf5 {[%emt 0:03:38]} Rc6 {[%emt 0:04:33]} 19. e4 {[%emt 0:03:02]} Nxa4 {[%emt 0:00:30]} 20. exd5 {[%emt 0:00:40]} Rd6 {[%emt 0:02:37]} 21. bxa4 {[%emt 0:00:17]} Bxd5 {[%emt 0:00:57]} 22. Be5 {[%emt 0:00:20]} Bxf3 {[%emt 0:00:15]} 23. Qxf3 {[%emt 0:00:01]} Rxd1+ {[%emt 0:01:21]} 24. Rxd1 {[%emt 0:00:01]} Qb6 {[%emt 0:00:03]} 25. Rb1 {[%emt 0:00:14]} Qa5 {[%emt 0:02:02]} 26. Bxb8 {[%emt 0:00:22]} c4 {[%emt 0:00:29]} 27. g3 {[%emt 0:00:52]} c3 {[%emt 0:00:34]} 28. Bc2 {[%emt 0:00:47]} Bxa3 {[%emt 0:00:20]} 29. Rb5 {[%emt 0:00:55]} Qd8 {[%emt 0:01:52]} 30. Qxc3 {[%emt 0:00:17]} Bc1 {[%emt 0:00:03]} 31. Qd3 {[%emt 0:00:08]} g6 {[%emt 0:00:17]} 32. Qxd8 {[%emt 0:00:04]} Rxd8 {[%emt 0:00:01]} 33. Bxa7 {[%emt 0:00:07]} Rd7 {[%emt 0:00:29]} 34. Be3 {[%emt 0:00:19]} Bxe3 {[%emt 0:00:22]} 35. fxe3 {[%emt 0:00:01]} Rd2 {[%emt 0:00:03]} 36. Bb3 {[%emt 0:00:06]} 1-0

[Event "16th Deltalift Open 2019"]
[Site "Halmstad"]
[Date "2019.05.30"]
[Round "2.21"]
[White "Andersson, Lars"]
[Black "Sjoberg, Isak"]
[Result "0-1"]
[ECO "A45"]
[WhiteElo "1997"]
[BlackElo "2208"]
[Annotator "ChessBase"]
[PlyCount "72"]
[EventDate "2019.05.30"]
[EventType "swiss"]
[EventCountry "SWE"]
[SourceTitle "playchess.com"]
[Source "ChessBase"]
[SourceQuality "1"]
[TimeControl "1800+12"]

1. d4 {[%emt 0:00:00]} Nf6 {[%emt 0:00:00]} 2. Bf4 {[%emt 0:00:00]} g6 {[%emt 0:00:01]} 3. e3 {[%emt 0:00:01]} Bg7 {[%emt 0:00:02]} 4. Nf3 {[%emt 0:00:04]} O-O {[%emt 0:00:04]} 5. Be2 {[%emt 0:00:03]} d6 {[%emt 0:00:05]} 6. O-O {[%emt 0:00:08]} Nbd7 {[%emt 0:01:16]} 7. h3 {[%emt 0:00:07]} c5 {[%emt 0:00:04]} 8. c3 {[%emt 0:00:07]} b6 {[%emt 0:00:02]} 9. Nbd2 {[%emt 0:00:06]} Bb7 {[%emt 0:00:02]} 10. a4 {[%emt 0:00:05]} a6 {[%emt 0:00:02]} 11. Bh2 {[%emt 0:02:06]} Ra7 {[%emt 0:00:01]} 12. Re1 {[%emt 0:04:23]} Qa8 {[%emt 0:00:02]} 13. Bf1 {[%emt 0:00:13]} Rb8 {[%emt 0:02:08]} 14. b4 {[%emt 0:01:27]} Rc8 {[%emt 0:05:10]} 15. Qb3 {[%emt 0:04:32]} cxb4 {[%emt 0:02:44]} 16. cxb4 {[%emt 0:00:04]} Bd5 {[%emt 0:00:10]} 17. Qa3 {[%emt 0:02:04]} Re8 {[%emt 0:04:42]} 18. Bd3 {[%emt 0:02:10]} Ne4 {[%emt 0:02:38]} 19. Nxe4 {[%emt 0:01:32]} Bxe4 {[%emt 0:00:02]} 20. Bxe4 {[%emt 0:00:28]} Qxe4 {[%emt 0:00:05]} 21. Rac1 {[%emt 0:01:49]} Nf6 {[%emt 0:02:07]} 22. Re2 {[%emt 0:03:28]} e5 {[%emt 0:01:09]} 23. Rec2 {[%emt 0:02:06]} Rae7 {[%emt 0:01:31]} 24. dxe5 {[%emt 0:00:49]} dxe5 {[%emt 0:00:10]} 25. Nd2 {[%emt 0:01:21]} Qd5 {[%emt 0:01:54]} 26. Nc4 {[%emt 0:01:16]} b5 {[%emt 0:00:07]} 27. axb5 {[%emt 0:00:18]} axb5 {[%emt 0:00:02]} 28. Rd2 {[%emt 0:02:00]} Qe6 {[%emt 0:00:09]} 29. Rd6 {[%emt 0:00:52]} Qf5 {[%emt 0:00:14]} 30. Nd2 {[%emt 0:01:59]} h5 {[%emt 0:00:30]} 31. f3 {[%emt 0:00:06]} Rd7 {[%emt 0:02:28]} 32. e4 {[%emt 0:00:06]} Qg5 {[%emt 0:00:01]} 33. Rxd7 {[%emt 0:00:04]} Nxd7 {[%emt 0:00:01]} 34. Qd3 {[%emt 0:00:26]} Nb6 {[%emt 0:00:08]} 35. Rc5 {[%emt 0:00:21]} Rd8 {[%emt 0:00:16]} 36. Qxb5 {[%emt 0:00:18]} Qxd2 {[%emt 0:00:09]} 0-1

[Event "16th Deltalift Open 2019"]
[Site "Halmstad"]
[Date "2019.05.30"]
[Round "2.22"]
[White "Carlsson, Ludvig"]
[Black "Segerberg, Tomas"]
[Result "1-0"]
[ECO "A83"]
[WhiteElo "2208"]
[BlackElo "1997"]
[Annotator "ChessBase"]
[PlyCount "75"]
[EventDate "2019.05.30"]
[EventType "swiss"]
[EventCountry "SWE"]
[SourceTitle "playchess.com"]
[Source "ChessBase"]
[SourceQuality "1"]
[TimeControl "1800+12"]

1. d4 {[%emt 0:00:00]} f5 {[%emt 0:00:00]} 2. e4 {[%emt 0:00:31]} fxe4 {[%emt 0:00:18]} 3. Nc3 {[%emt 0:00:03]} Nf6 {[%emt 0:01:13]} 4. Bg5 {[%emt 0:00:04]} Nc6 {[%emt 0:01:55]} 5. d5 {[%emt 0:00:20]} Ne5 {[%emt 0:00:02]} 6. Qe2 {[%emt 0:00:02]} Nf7 {[%emt 0:01:11]} 7. Bxf6 {[%emt 0:00:04]} exf6 {[%emt 0:00:02]} 8. Nxe4 {[%emt 0:00:04]} Bb4+ {[%emt 0:03:26]} 9. c3 {[%emt 0:00:53]} Be7 {[%emt 0:00:02]} 10. d6 {[%emt 0:01:10]} cxd6 {[%emt 0:00:27]} 11. O-O-O {[%emt 0:00:49]} O-O {[%emt 0:00:11]} 12. Qb5 {[%emt 0:01:48]} Qb6 {[%emt 0:02:39]} 13. Qxb6 {[%emt 0:01:41]} axb6 {[%emt 0:00:02]} 14. Bc4 {[%emt 0:00:03]} Kh8 {[%emt 0:03:11]} 15. Bd5 {[%emt 0:04:26]} f5 {[%emt 0:02:51]} 16. Ng3 {[%emt 0:01:17]} Ne5 {[%emt 0:00:59]} 17. f3 {[%emt 0:00:23]} g6 {[%emt 0:02:19]} 18. N1e2 {[%emt 0:00:50]} Nc6 {[%emt 0:03:57]} 19. Nd4 {[%emt 0:00:56]} Bf6 {[%emt 0:00:40]} 20. Nb5 {[%emt 0:00:30]} Be5 {[%emt 0:00:26]} 21. Kb1 {[%emt 0:00:10]} Ne7 {[%emt 0:00:19]} 22. Rhe1 {[%emt 0:01:04]} Nxd5 {[%emt 0:01:31]} 23. Rxd5 {[%emt 0:00:03]} Ra5 {[%emt 0:01:11]} 24. c4 {[%emt 0:00:04]} Kg7 {[%emt 0:00:37]} 25. b3 {[%emt 0:00:02]} h5 {[%emt 0:00:28]} 26. a4 {[%emt 0:00:10]} h4 {[%emt 0:00:29]} 27. Nf1 {[%emt 0:00:11]} Rf6 {[%emt 0:00:19]} 28. g3 {[%emt 0:00:37]} hxg3 {[%emt 0:00:13]} 29. hxg3 {[%emt 0:00:02]} f4 {[%emt 0:00:23]} 30. g4 {[%emt 0:00:05]} Rf8 {[%emt 0:00:05]} 31. Re2 {[%emt 0:00:03]} Rh8 {[%emt 0:00:02]} 32. Rh2 {[%emt 0:00:02]} Rxh2 {[%emt 0:01:00]} 33. Nxh2 {[%emt 0:00:04]} Kf6 {[%emt 0:00:14]} 34. Kc2 {[%emt 0:00:24]} Kg5 {[%emt 0:00:31]} 35. Kd3 {[%emt 0:00:15]} Kh4 {[%emt 0:01:30]} 36. Nf1 {[%emt 0:00:02]} Kh3 {[%emt 0:00:06]} 37. Ke2 {[%emt 0:00:03]} Kg2 {[%emt 0:00:06]} 38. Nd2 {[%emt 0:00:02]} 1-0